bitfinex/quotes_SOLUSD_20260223
["timestamp","ask_amount","ask_price","bid_price","bid_amount"]
[1771809602975,12.60598526,78.824,78.751,3.07229382]
[1771809603177,12.68391679,78.84,78.8,33.35136591]
[1771809603364,12.68391679,78.84,78.801,3.07229382]
[1771809603558,18.04651558,78.867,78.82,30.27907209]
[1771809603762,50.68536125,78.919,78.76,30.27907209]
[1771809603763,0.67644547,78.899,78.841,3.07229382]
[1771809603964,0.67644547,78.899,78.85,30.27907209]
[1771809604285,0.68665853,78.893,78.84,30.27907209]
[1771809604460,12.67154098,78.917,78.871,3.07229382]
[1771809604654,50.65460097,78.967,78.814,5.36086188]
[1771809604655,30.27907209,78.9,78.841,12.68375591]
[1771809604881,3.03914545,78.904,78.841,12.68375591]
[1771809605059,3.03914545,78.879,78.83,30.27907209]
[1771809605259,3.03914545,78.879,78.84,30.27907209]
[1771809605459,12.67346809,78.905,78.794,5.36086188]
[1771809605460,12.67346809,78.905,78.87,30.27907209]
[1771809605773,3.03914545,78.919,78.87,30.27907209]
[1771809605983,3.03914545,78.919,78.88,30.27907209]
[1771809606178,3.03914545,78.919,78.87,30.27907209]
[1771809606360,12.67057765,78.923,78.88,30.27907209]
[1771809606554,3.03914545,78.922,78.88,30.27907209]
[1771809606779,3.03914545,78.937,78.89,30.27907209]
[1771809606978,30.27907209,78.92,78.878,3.07229382]
[1771809607282,3.03914545,78.929,78.878,3.07229382]
[1771809607962,3.03914545,78.929,78.87,30.27907209]
[1771809608377,3.03914545,78.929,78.869,3.07229382]
[1771809608584,30.27907209,78.89,78.842,3.0284277]
[1771809608879,30.27907209,78.86,78.829,3.0284277]
[1771809609059,30.27907209,78.85,78.802,3.0284277]
[1771809609379,30.27907209,78.85,78.81,33.30749979]
[1771809609686,12.67925293,78.869,78.821,3.0284277]
[1771809610184,30.27907209,78.85,78.821,3.0284277]
[1771809610680,30.27907209,78.84,78.806,3.0284277]
[1771809610884,12.68407767,78.839,78.806,3.0284277]
[1771809611084,12.68308449,78.846,78.808,3.0284277]
[1771809611590,30.27907209,78.86,78.821,3.0284277]
[1771809611766,30.27907209,78.84,78.802,3.0284277]
[1771809612163,2.98874664,78.856,78.802,3.0284277]
[1771809612375,30.27907209,78.85,78.802,3.0284277]
[1771809612587,30.27907209,78.85,78.811,3.0284277]
[1771809612795,12.68246902,78.849,78.811,3.0284277]
[1771809613296,30.27907209,78.85,78.811,15.7168665]
[1771809613598,30.27907209,78.83,78.799,12.69051637]
[1771809613778,30.27907209,78.85,78.811,3.0284277]
[1771809613983,44.37344692,78.876,78.801,3.0284277]
[1771809613984,30.27907209,78.84,78.801,3.0284277]
[1771809614176,30.27907209,78.86,78.821,3.0284277]
[1771809614383,2.98874664,78.849,78.808,3.0284277]
[1771809614788,44.37344692,78.876,78.794,3.0284277]
[1771809614789,30.27907209,78.83,78.794,3.0284277]
[1771809615094,3.69383402,78.873,78.801,3.0284277]
[1771809615095,30.27907209,78.84,78.801,3.0284277]
[1771809615479,31.70640817,78.849,78.801,3.0284277]
[1771809615695,30.27907209,78.85,78.811,3.0284277]
[1771809615901,30.27907209,78.84,78.799,3.0284277]
[1771809616077,30.27907209,78.83,78.799,3.0284277]
[1771809616289,44.38766927,78.851,78.699,12.70664176]
[1771809616290,30.27907209,78.81,78.699,12.70664176]
[1771809616480,386.80564745,78.851,78.699,12.70664176]
[1771809616481,30.27907209,78.74,78.701,3.01037348]
[1771809616696,30.01624473,78.829,78.701,3.01037348]
[1771809616697,12.60598526,78.81,78.701,3.01037348]
[1771809616996,3.69383402,78.785,78.711,3.01037348]
[1771809617177,95.19216123,78.788,78.721,3.01037348]
[1771809617178,30.27907209,78.77,78.721,3.01037348]
[1771809617581,30.27907209,78.78,78.731,3.01037348]
[1771809618202,30.27907209,78.78,78.74,30.27907209]
[1771809618504,30.27907209,78.8,78.751,3.01037348]
[1771809618689,44.40046683,78.828,78.771,3.01037348]
[1771809618902,44.40046683,78.828,78.77,30.27907209]
[1771809618903,44.40046683,78.828,78.79,30.27907209]
[1771809619096,44.40046683,78.828,78.755,31.74392102]
[1771809619097,12.68407767,78.839,78.8,30.27907209]
[1771809619285,30.27907209,78.83,78.801,3.01037348]
[1771809619485,12.68407767,78.839,78.801,3.01037348]
[1771809619486,44.39427186,78.839,78.801,3.01037348]
[1771809619690,12.67138042,78.918,78.821,3.01037348]
[1771809619895,31.68126116,78.911,78.841,3.01037348]
[1771809620096,31.68126116,78.911,78.795,5.36086188]
[1771809620097,30.27907209,78.89,78.851,3.01037348]
[1771809620610,31.68126116,78.911,78.83,3.01037348]
[1771809620611,30.27907209,78.87,78.83,3.01037348]
[1771809620814,30.27907209,78.86,78.83,3.01037348]
[1771809621106,177.39932588,78.918,78.815,3.01037348]
[1771809621107,12.68246902,78.849,78.815,3.01037348]
[1771809621407,30.27907209,78.84,78.815,3.01037348]
[1771809621807,30.27907209,78.84,78.642,42.23321488]
[1771809621999,44.38864157,78.849,78.642,42.23321488]
[1771809622000,2.77391922,78.83,78.77,30.27907209]
[1771809622203,2.77391922,78.843,78.77,30.27907209]
[1771809622592,2.77391922,78.843,78.79,30.27907209]
[1771809622806,30.27907209,78.84,78.8,30.27907209]
[1771809623102,30.27907209,78.84,78.735,5.36086188]
[1771809623103,30.27907209,78.87,78.83,30.27907209]
[1771809623308,2.77281659,78.874,78.777,3.69383402]
[1771809623521,30.27907209,78.85,78.81,30.27907209]
[1771809623885,30.27907209,78.86,78.821,2.93315536]
[1771809624284,107.7545225,78.883,78.831,2.93315536]
[1771809624285,30.27907209,78.87,78.831,2.93315536]
[1771809624487,30.27907209,78.88,78.841,2.93315536]
[1771809624700,12.67603848,78.889,78.851,2.93315536]
[1771809625092,30.27907209,78.9,78.861,2.93315536]
[1771809625293,30.27907209,78.92,78.881,2.93315536]
[1771809625506,30.27907209,78.93,78.891,2.93315536]
[1771809625721,12.66833044,78.937,78.891,2.93315536]
[1771809625905,12.66833044,78.937,78.9,30.27907209]
[1771809626110,0.2,78.98,78.911,2.93315536]
[1771809626111,12.66653321,78.949,78.911,2.93315536]
[1771809626608,30.27907209,78.92,78.871,2.93315536]
[1771809626816,2.5735881,78.927,78.871,2.93315536]
[1771809627109,12.67009603,78.926,78.881,2.93315536]
[1771809627317,12.67009603,78.926,78.89,33.21222745]
[1771809627516,12.67009603,78.926,78.89,2.93315536]
[1771809627715,30.27907209,78.93,78.891,2.93315536]
[1771809628629,12.6686695,78.935,78.881,2.93315536]
[1771809628630,2.48493236,78.934,78.881,2.93315536]
[1771809628916,12.66800947,78.939,78.89,30.27907209]
[1771809629120,2.46146459,78.938,78.891,2.93315536]
[1771809629310,30.27907209,78.92,78.88,30.27907209]
[1771809629518,30.27907209,78.92,78.881,2.93315536]
[1771809629712,30.27907209,78.92,78.838,3.69383402]
[1771809629713,30.27907209,78.89,78.847,2.93315536]
[1771809629916,30.27907209,78.86,78.821,2.93315536]
[1771809630122,30.27907209,78.88,78.831,2.93315536]
[1771809630301,30.27907209,78.88,78.84,33.21222745]
[1771809630908,30.27907209,78.88,78.841,2.93315536]
[1771809631308,12.6776455,78.879,78.841,2.93315536]
[1771809631530,12.60598526,78.91,78.851,2.93315536]
[1771809631531,30.31913934,78.89,78.851,2.93315536]
[1771809631908,12.67491381,78.896,78.86,30.31913934]
[1771809632219,30.31913934,78.89,78.851,2.93315536]
[1771809632417,12.67491381,78.896,78.851,2.93315536]
[1771809632623,30.31913934,78.89,78.851,2.93315536]
[1771809633030,30.31913934,78.88,78.84,30.31913934]
[1771809633323,12.67925293,78.869,78.83,30.31913934]
[1771809633623,30.31913934,78.86,78.823,12.68665237]
[1771809633919,44.37738527,78.869,78.831,2.93315536]
[1771809634124,30.31913934,78.86,78.831,2.93315536]
[1771809634421,30.31913934,78.86,78.821,2.93315536]
[1771809634606,30.31913934,78.85,78.81,30.31913934]
[1771809634797,30.31913934,78.85,78.811,2.93315536]
[1771809635618,2.32568716,78.893,78.831,2.93315536]
[1771809635828,30.31913934,78.88,78.831,2.93315536]
[1771809636023,30.31913934,78.89,78.851,2.93315536]
[1771809636223,12.67539578,78.893,78.86,33.2522947]
[1771809636522,12.67346809,78.905,78.861,2.93315536]
[1771809636828,30.31913934,78.89,78.851,2.93315536]
[1771809637131,30.31913934,78.9,78.86,33.2522947]
[1771809637518,44.35713832,78.905,78.871,2.93315536]
[1771809637706,30.31913934,78.9,78.86,30.31913934]
[1771809637907,30.31913934,78.89,78.856,2.93315536]
[1771809638726,30.31913934,78.9,78.861,2.38769091]
[1771809639608,30.31913934,78.9,78.862,12.68037838]
[1771809639609,12.67443186,78.899,78.862,12.68037838]
[1771809639804,30.31913934,78.89,78.851,2.38769091]
[1771809640018,12.67443186,78.899,78.861,2.38769091]
[1771809640310,30.31913934,78.89,78.85,30.31913934]
[1771809640504,30.31913934,78.89,78.813,107.85022774]
[1771809640505,30.31913934,78.88,78.834,2.38769091]
[1771809640716,30.31913934,78.88,78.841,2.38769091]
[1771809641328,30.31913934,78.87,78.841,2.38769091]
[1771809641622,107.73267087,78.899,78.82,30.31913934]
[1771809641623,2.1804296,78.885,78.82,30.31913934]
[1771809641826,30.31913934,78.87,78.83,30.31913934]
[1771809642023,30.31913934,78.85,78.812,2.38769091]
[1771809642219,30.31913934,78.85,78.81,30.31913934]
[1771809642419,30.31913934,78.85,78.811,2.38769091]
[1771809642607,145.75781386,78.898,78.778,2.38769091]
[1771809642608,30.31913934,78.82,78.778,2.38769091]
[1771809642813,30.31913934,78.81,78.778,2.38769091]
[1771809643025,30.31913934,78.8,78.768,2.38769091]
[1771809643207,30.31913934,78.82,78.781,2.38769091]
[1771809643611,12.68890608,78.809,78.781,2.38769091]
[1771809643935,30.31913934,78.82,78.781,2.38769091]
[1771809644317,2.12016029,78.82,78.768,2.38769091]
[1771809644615,2.12016029,78.82,78.738,3.69383402]
[1771809644616,30.31913934,78.78,78.741,2.38769091]
[1771809644822,30.31913934,78.76,78.728,2.38769091]
[1771809645217,2.12016029,78.781,78.732,2.38769091]
[1771809645218,30.31913934,78.77,78.732,2.38769091]
[1771809645417,30.31913934,78.78,78.741,2.38769091]
[1771809645617,30.31913934,78.79,78.751,2.38769091]
[1771809645824,30.31913934,78.8,78.761,2.38769091]
[1771809646019,30.31913934,78.78,78.747,2.38769091]
[1771809646338,44.41567999,78.801,78.73,0.1]
[1771809646339,30.31913934,78.77,78.731,2.38769091]
[1771809646529,30.31913934,78.75,78.73,0.1]
[1771809646930,2.1268171,78.764,78.73,0.1]
[1771809647132,30.31913934,78.74,78.72,0.1]
[1771809647330,30.31913934,78.75,78.72,2.48769091]
[1771809647538,30.31913934,78.77,78.731,2.38769091]
[1771809647736,12.69534969,78.769,78.732,12.70131585]
[1771809648029,12.69534969,78.769,78.73,30.31913934]
[1771809648030,12.69534969,78.769,78.733,2.38769091]
[1771809648234,50.76077714,78.801,78.72,0.1]
[1771809648235,30.31913934,78.78,78.741,2.38769091]
[1771809648441,3.69383402,78.786,78.731,2.38769091]
[1771809648645,12.69212707,78.789,78.751,2.38769091]
[1771809649640,30.31913934,78.78,78.74,30.31913934]
[1771809649942,12.69318813,78.783,78.751,2.38769091]
[1771809650144,12.69230315,78.788,78.751,2.38769091]
[1771809651046,12.69230315,78.788,78.75,30.31913934]
[1771809651047,12.69003225,78.803,78.771,2.38769091]
[1771809651226,30.31913934,78.8,78.761,2.38769091]
[1771809651428,30.31913934,78.8,78.76,30.31913934]
[1771809651429,30.31913934,78.8,78.771,2.38769091]
[1771809651743,12.69003225,78.803,78.771,2.38769091]
[1771809651934,30.31913934,78.82,78.781,2.38769091]
[1771809652129,30.31913934,78.81,78.767,2.38769091]
[1771809652332,63.4131261,78.849,78.756,2.38769091]
[1771809652333,30.31913934,78.79,78.756,2.38769091]
[1771809652531,30.31913934,78.81,78.771,2.38769091]
[1771809652842,63.4131261,78.849,78.771,2.38769091]
[1771809652843,30.31913934,78.8,78.771,2.38769091]
[1771809653344,30.31913934,78.81,78.771,2.38769091]
[1771809653751,44.4111713,78.809,78.771,2.38769091]
[1771809653930,12.68890608,78.809,78.771,2.38769091]
[1771809654439,3.69383402,78.777,78.728,2.38769091]
[1771809654630,95.16679565,78.809,78.728,2.38769091]
[1771809654631,30.31913934,78.75,78.728,2.38769091]
[1771809654825,30.31913934,78.76,78.728,2.38769091]
[1771809655324,30.31913934,78.77,78.731,2.38769091]
[1771809655525,1.85443879,78.801,78.75,30.31913934]
[1771809655735,1.85443879,78.801,78.751,2.38769091]
[1771809655736,30.31913934,78.79,78.751,2.38769091]
[1771809656441,30.31913934,78.77,78.738,2.38769091]
[1771809656947,30.31913934,78.77,78.73,30.31913934]
[1771809656948,30.31913934,78.78,78.741,2.38769091]
[1771809657151,44.42244475,78.789,78.751,2.38769091]
[1771809657334,30.31913934,78.78,78.751,2.38769091]
[1771809657543,30.31913934,78.76,78.736,2.38769091]
[1771809657849,30.31913934,78.76,78.725,2.38769091]
[1771809658347,30.31913934,78.77,78.73,32.70683025]
[1771809658557,12.69564625,78.768,78.731,2.38769091]
[1771809658732,12.69564625,78.768,78.74,30.31913934]
[1771809659054,12.69564625,78.768,78.731,2.38769091]
[1771809659228,30.31913934,78.78,78.741,2.38769091]
[1771809659832,30.31913934,78.77,78.741,2.38769091]
[1771809660229,3.69383402,78.805,78.741,2.38769091]
[1771809660545,30.31913934,78.81,78.77,30.31913934]
[1771809660748,1.75996959,78.779,78.73,30.31913934]
[1771809661071,30.31913934,78.79,78.751,2.38769091]
[1771809661356,30.31913934,78.78,78.741,2.38769091]
[1771809661527,30.31913934,78.79,78.751,2.38769091]
[1771809661733,30.31913934,78.82,78.78,30.31913934]
[1771809661956,12.68568673,78.829,78.721,149.77937661]
[1771809661957,12.68568673,78.829,78.8,30.31913934]
[1771809662143,30.31913934,78.82,78.791,2.38769091]
[1771809662328,50.71130457,78.878,78.5,47.8271337]
[1771809662329,30.31913934,78.85,78.811,2.38769091]
[1771809662533,50.69047918,78.911,78.792,12.69164382]
[1771809662534,12.68086077,78.859,78.83,30.31913934]
[1771809662837,12.68086077,78.859,78.821,2.38769091]
[1771809662838,30.31913934,78.85,78.81,30.31913934]
[1771809663134,30.31913934,78.85,78.792,44.42075337]
[1771809663135,30.31913934,78.83,78.794,2.38769091]
[1771809663333,20.64464715,78.84,78.801,2.38769091]
[1771809663733,1.715356,78.858,78.811,2.38769091]
[1771809663934,20.64464715,78.84,78.811,2.38769091]
[1771809664357,20.64464715,78.83,78.798,2.38769091]
[1771809664655,1.6975618,78.806,78.722,2.38769091]
[1771809664865,20.64464715,78.76,78.722,2.38769091]
[1771809665365,30.4074442,78.76,78.722,2.38769091]
[1771809665662,3.69383402,78.824,78.741,2.38769091]
[1771809665864,30.4074442,78.78,78.741,2.38769091]
[1771809666066,1.67994747,78.801,78.741,2.38769091]
[1771809666244,30.4074442,78.78,78.75,32.79513511]
[1771809666439,30.4074442,78.77,78.731,2.38769091]
[1771809666640,30.4074442,78.76,78.721,2.38769091]
[1771809666864,30.4074442,78.77,78.731,2.38769091]
[1771809667258,30.4074442,78.76,78.731,2.38769091]
[1771809667665,44.42808361,78.779,78.72,0.1]
[1771809667666,30.4074442,78.75,78.721,15.09078157]
[1771809667967,30.4074442,78.77,78.731,2.38769091]
[1771809668173,30.4074442,78.77,78.741,2.38769091]
[1771809668468,30.4074442,78.78,78.751,2.24625988]
[1771809668973,30.4074442,78.77,78.751,2.24625988]
[1771809669176,30.4074442,78.78,78.751,2.24625988]
[1771809669375,30.4074442,78.77,78.738,2.24625988]
[1771809669662,30.4074442,78.77,78.74,32.65370408]
[1771809669846,12.69373817,78.779,78.741,2.24625988]
[1771809670461,12.69373817,78.779,78.742,12.69970282]
[1771809670673,30.4074442,78.77,78.743,2.24625988]
[1771809671061,30.4074442,78.78,78.743,2.24625988]
[1771809671250,30.4074442,78.76,78.715,2.24625988]
[1771809671446,30.4074442,78.76,78.731,2.24625988]
[1771809671754,30.4074442,78.78,78.751,2.24625988]
[1771809671957,30.4074442,78.76,78.738,2.24625988]
[1771809672157,30.4074442,78.77,78.738,2.24625988]
[1771809672463,12.69534969,78.769,78.739,12.70018669]
[1771809672653,12.69534969,78.769,78.738,2.24625988]
[1771809672848,30.4074442,78.77,78.74,30.4074442]
[1771809673052,30.4074442,78.77,78.741,2.24625988]
[1771809673380,30.4074442,78.79,78.751,2.24625988]
[1771809673748,43.09793663,78.8,78.761,2.24625988]
[1771809673964,31.71557726,78.826,78.78,30.4074442]
[1771809674170,30.4074442,78.8,78.771,2.24625988]
[1771809674371,12.69212707,78.789,78.747,2.24625988]
[1771809674574,30.4074442,78.76,78.734,2.24625988]
[1771809675077,30.4074442,78.77,78.734,2.24625988]
[1771809675283,30.4074442,78.78,78.741,2.24625988]
[1771809675775,12.69212707,78.789,78.751,2.24625988]
[1771809675975,30.4074442,78.79,78.751,2.24625988]
[1771809676156,43.09948488,78.79,78.751,2.24625988]
[1771809676673,30.4074442,78.8,78.761,2.11872251]
[1771809676875,30.4074442,78.78,78.753,2.11872251]
[1771809677269,30.4074442,78.79,78.753,2.11872251]
[1771809677473,30.4074442,78.8,78.761,2.11872251]
[1771809677977,43.09618928,78.81,78.771,2.11872251]
[1771809678171,30.4074442,78.79,78.76,2.11872251]
[1771809678483,30.4074442,78.79,78.761,2.11872251]
[1771809678661,30.4074442,78.8,78.763,2.11872251]
[1771809679054,12.68906709,78.808,78.771,2.11872251]
[1771809679261,30.4074442,78.82,78.781,2.11872251]
[1771809679461,30.4074442,78.8,78.767,2.11872251]
[1771809679680,44.39765072,78.833,78.781,2.11872251]
[1771809679681,30.4074442,78.82,78.781,2.11872251]
[1771809679968,30.4074442,78.81,78.781,2.11872251]
[1771809680177,12.6842376,78.839,78.801,2.11872251]
[1771809680373,30.4074442,78.84,78.811,2.11872251]
[1771809680575,12.68246902,78.849,78.819,2.11872251]
[1771809680780,12.68176588,78.854,78.821,2.11872251]
[1771809681087,12.68086077,78.859,78.821,2.11872251]
[1771809681460,30.33724924,78.85,78.821,2.11872251]
[1771809682078,43.21806712,78.86,78.821,2.11872251]
[1771809682281,43.21806712,78.86,78.78,63.46772037]
[1771809682282,30.33724924,78.83,78.782,2.11872251]
[1771809682578,12.68954348,78.806,78.722,2.11872251]
[1771809682777,30.33724924,78.8,78.723,44.45968776]
[1771809683073,30.33724924,78.8,78.724,2.11872251]
[1771809683280,30.33724924,78.79,78.725,2.11872251]
[1771809683490,30.33724924,78.8,78.725,2.11872251]
[1771809684198,30.33724924,78.8,78.731,3.69383402]
[1771809684488,30.33724924,78.81,78.74,2.11872251]
[1771809684661,30.33724924,78.8,78.742,2.11872251]
[1771809685373,20.65773054,78.8,78.742,2.11872251]
[1771809685582,20.65773054,78.79,78.742,2.11872251]
[1771809685772,20.65773054,78.8,78.742,2.11872251]
[1771809686177,20.65773054,78.81,78.742,2.11872251]
[1771809686384,20.65773054,78.82,78.742,2.11872251]
[1771809686687,20.65773054,78.81,78.744,2.11872251]
[1771809687993,20.65773054,78.81,78.721,2.11872251]
[1771809687994,20.65773054,78.77,78.721,2.11872251]
[1771809688200,20.65773054,78.75,78.722,2.11872251]
[1771809688697,20.65773054,78.76,78.724,2.11872251]
[1771809688882,12.69696161,78.759,78.724,2.11872251]
[1771809689273,20.65773054,78.77,78.724,2.11872251]
[1771809689492,20.65773054,78.76,78.724,2.11872251]
[1771809689689,20.65773054,78.75,78.724,2.11872251]
[1771809690074,20.65773054,78.76,78.724,2.11872251]
[1771809690397,20.65773054,78.75,78.724,2.11872251]
[1771809690601,20.65773054,78.75,78.703,31.76477068]
[1771809690602,20.65773054,78.75,78.711,2.11872251]
[1771809690900,20.65773054,78.73,78.701,2.11872251]
[1771809691069,63.47848719,78.767,78.701,2.11872251]
[1771809691070,20.65773054,78.74,78.701,2.11872251]
[1771809691273,20.65773054,78.76,78.701,2.11872251]
[1771809692201,20.65773054,78.77,78.701,2.11872251]
[1771809692411,20.65773054,78.78,78.709,2.11872251]
[1771809692775,12.69373817,78.779,78.711,2.11872251]
[1771809692991,20.65773054,78.77,78.711,2.11872251]
[1771809693395,20.67616203,78.77,78.711,2.11872251]
[1771809693878,20.67616203,78.76,78.711,2.11872251]
[1771809694793,20.67616203,78.74,78.625,50.87383642]
[1771809694998,20.67616203,78.74,78.695,2.11872251]
[1771809695887,20.67616203,78.76,78.695,2.11872251]
[1771809696085,20.67616203,78.75,78.695,2.11872251]
[1771809696692,1.19875367,78.729,78.683,2.11872251]
[1771809696988,20.67616203,78.74,78.69,2.11872251]
[1771809697198,20.67616203,78.72,78.689,14.39157804]
[1771809697708,1.18617096,78.729,78.689,14.39157804]
[1771809698006,20.67616203,78.73,78.69,2.11872251]
[1771809698300,20.67616203,78.74,78.691,2.11872251]
[1771809698620,20.67616203,78.73,78.691,2.11872251]
[1771809698779,12.69857395,78.749,78.693,2.00018772]
[1771809699313,20.67616203,78.77,78.695,2.00018772]
[1771809699600,12.69236182,78.788,78.707,2.28451086]
[1771809699800,20.67616203,78.78,78.708,0.28432314]
[1771809699985,13.84405371,78.788,78.709,2.00018772]
[1771809700185,20.67616203,78.77,78.709,2.00018772]
[1771809700505,12.69236182,78.788,78.709,2.00018772]
[1771809700506,20.67616203,78.76,78.709,2.00018772]
[1771809700714,20.67616203,78.74,78.693,2.00018772]
[1771809700997,12.70018669,78.739,78.695,2.00018772]
[1771809701603,20.67616203,78.73,78.689,14.39157804]
[1771809701794,1.12758847,78.736,78.689,14.39157804]
[1771809701795,1.12758847,78.736,78.69,2.00018772]
[1771809701984,20.67616203,78.73,78.69,2.00018772]
[1771809702184,20.67616203,78.73,78.69,14.70828277]
[1771809702591,20.67616203,78.73,78.69,2.00018772]
[1771809703301,12.70179984,78.729,78.69,14.70828277]
[1771809703502,12.70179984,78.729,78.691,2.00018772]
[1771809705805,20.67616203,78.73,78.691,2.00018772]
[1771809706126,20.67616203,78.73,78.691,14.70809837]
[1771809706812,20.67616203,78.73,78.692,2.00018772]
[1771809707708,1.0693259,78.736,78.692,2.00018772]
[1771809707900,20.67616203,78.73,78.693,12.70761058]
[1771809708098,12.7008319,78.735,78.693,12.70761058]
[1771809708099,1.04679322,78.765,78.694,2.00018772]
[1771809708424,12.6961556,78.764,78.694,2.00018772]
[1771809708707,50.74133596,78.832,78.693,44.47663704]
[1771809708708,1.04679322,78.825,78.717,2.00018772]
[1771809708896,50.70602723,78.887,78.74,2.00018772]
[1771809708897,1.03568757,78.829,78.74,2.00018772]
[1771809709093,21.7118496,78.82,78.74,2.00018772]
[1771809709309,20.67616203,78.82,78.74,2.00018772]
[1771809709493,20.67616203,78.82,78.738,0.14216157]
[1771809709494,20.67616203,78.83,78.75,2.00018772]
[1771809709687,20.67616203,78.83,78.756,2.28451086]
[1771809710095,20.67616203,78.83,78.758,2.28451086]
[1771809710411,63.40632382,78.857,78.758,2.28451086]
[1771809710412,20.67616203,78.84,78.77,2.00018772]
[1771809710612,12.68336306,78.844,78.77,2.00018772]
[1771809710813,33.35851727,78.85,78.78,2.00018772]
[1771809710997,12.68235524,78.85,78.78,2.00018772]
[1771809711197,33.35851727,78.85,78.78,2.00018772]
[1771809711398,20.67616203,78.84,78.78,2.00018772]
[1771809711599,20.87616203,78.86,78.784,2.00018772]
[1771809711802,20.87616203,78.86,78.79,2.00018772]
[1771809712108,20.87616203,78.86,78.795,2.00018772]
[1771809712309,50.66416482,78.952,78.811,2.00018772]
[1771809712310,20.67616203,78.88,78.811,2.00018772]
[1771809712612,20.67616203,78.91,78.836,2.28451086]
[1771809712796,20.67616203,78.88,78.836,2.00018772]
[1771809713197,30.29254606,78.91,78.84,2.00018772]
[1771809713412,0.2,78.91,78.84,2.00018772]
[1771809713631,0.2,78.91,78.849,2.28451086]
[1771809714207,0.2,78.91,78.854,2.00018772]
[1771809714431,0.2,78.91,78.86,2.00018772]
[1771809714716,1e-08,78.91,78.866,2.00018772]
[1771809715218,12.66640489,78.949,78.86,7.64537274]
[1771809715425,30.29254606,78.92,78.869,2.00018772]
[1771809715999,30.29254606,78.91,78.869,2.00018772]
[1771809716203,30.29254606,78.9,78.871,2.00018772]
[1771809716618,30.29254606,78.88,78.844,2.00018772]
[1771809716810,12.67164341,78.917,78.832,2.00018772]
[1771809716811,30.29254606,78.86,78.832,2.00018772]
[1771809717019,12.67164341,78.917,78.766,45.74]
[1771809717020,30.29254606,78.84,78.787,2.00018772]
[1771809717432,3.69383402,78.881,78.787,2.00018772]
[1771809717735,11.90521303,78.907,78.787,2.00018772]
[1771809717736,30.29254606,78.85,78.787,2.00018772]
[1771809717917,30.29254606,78.85,78.789,2.00018772]
[1771809718318,0.94418537,78.89,78.801,2.00018772]
[1771809718531,30.29254606,78.87,78.819,2.00018772]
[1771809719030,30.29254606,78.86,78.819,2.00018772]
[1771809719438,30.29254606,78.85,78.819,2.00018772]
[1771809719615,30.29254606,78.86,78.819,2.00018772]
[1771809719810,30.29254606,78.88,78.819,2.00018772]
[1771809720332,30.29254606,78.88,78.821,2.00018772]
[1771809720510,30.29254606,78.9,78.83,2.00018772]
[1771809720715,30.29254606,78.88,78.83,2.00018772]
[1771809720915,30.29254606,78.88,78.82,44.40497335]
[1771809720916,30.29254606,78.85,78.82,12.68713524]
[1771809721223,0.95043828,78.882,78.821,2.00018772]
[1771809721421,30.29254606,78.86,78.821,2.00018772]
[1771809721619,30.29254606,78.85,78.821,2.00018772]
[1771809721839,0.94051706,78.829,78.787,12.69238475]
[1771809722149,0.94051706,78.829,78.74,50.79981608]
[1771809722150,0.94051706,78.855,78.771,2.00018772]
[1771809722435,0.94051706,78.855,78.758,3.69383402]
[1771809722436,30.29254606,78.84,78.776,2.00018772]
[1771809722642,21.10409349,78.882,78.776,2.00018772]
[1771809722643,30.29254606,78.81,78.776,2.00018772]
[1771809722811,30.29254606,78.82,78.776,2.00018772]
[1771809723210,30.29254606,78.81,78.767,2.00018772]
[1771809723825,30.29254606,78.8,78.767,2.00018772]
[1771809724029,30.29254606,78.79,78.758,12.69700406]
[1771809724228,30.29254606,78.79,78.754,2.00018772]
[1771809724428,30.29254606,78.8,78.755,2.00018772]
[1771809724943,30.29254606,78.77,78.725,2.00018772]
[1771809725139,30.29254606,78.76,78.725,2.00018772]
[1771809725342,30.29254606,78.77,78.725,2.00018772]
[1771809725529,30.29254606,78.76,78.725,2.00018772]
[1771809726233,30.29254606,78.77,78.725,2.00018772]
[1771809726438,340.10691237,78.831,78.709,12.70498494]
[1771809726439,30.29254606,78.75,78.709,12.70498494]
[1771809726647,30.29254606,78.75,78.71,2.00018772]
[1771809727152,30.29254606,78.76,78.71,2.00018772]
[1771809727350,12.69445117,78.775,78.71,2.00018772]
[1771809727554,30.29254606,78.77,78.71,2.00018772]
[1771809728060,30.29254606,78.75,78.71,2.00018772]
[1771809728443,30.29254606,78.74,78.711,12.70470455]
[1771809728836,12.70018669,78.739,78.698,12.70680322]
[1771809729035,42.99273234,78.74,78.699,1.8728483]
[1771809729746,42.99273234,78.74,78.695,1.8728483]
[1771809729947,0.85768264,78.739,78.695,1.8728483]
[1771809730465,30.29254606,78.74,78.697,1.8728483]
[1771809730640,12.70018669,78.739,78.697,1.8728483]
[1771809730838,30.29254606,78.74,78.697,1.8728483]
[1771809731361,12.70018669,78.739,78.697,1.8728483]
[1771809731732,30.29254606,78.74,78.697,1.8728483]
[1771809734350,12.69651612,78.762,78.699,1.8728483]
[1771809734653,30.29254606,78.73,78.701,1.8728483]
[1771809734852,30.29254606,78.74,78.701,1.8728483]
[1771809735054,30.29254606,78.73,78.701,1.8728483]
[1771809735354,20.69542386,78.73,78.698,12.70680322]
[1771809735855,0.81323078,78.738,78.699,1.8728483]
[1771809736053,20.69542386,78.73,78.699,1.8728483]
[1771809736755,20.69542386,78.73,78.7,12.7064803]